bitfinex/quotes_ETHUSD_20250822
["timestamp","ask_amount","ask_price","bid_price","bid_amount"]
[1755870604765,0.0192,4316.8,4316.7,3.24960907]
[1755870604973,0.0192,4316.8,4316.7,7.70960907]
[1755870605475,0.0192,4316.8,4316.7,2.31658442]
[1755870605632,0.0192,4316.8,4316.7,6.77558442]
[1755870605836,0.0192,4316.8,4316.7,2.31658442]
[1755870606056,0.0192,4316.8,4316.3,1.783]
[1755870606266,0.4806,4316.8,4316.4,4.459]
[1755870606466,0.4806,4316.8,4316.3,4.09977275]
[1755870606467,0.292,4316.4,4316.3,1.783]
[1755870606668,0.292,4316.4,4315.4,6.242]
[1755870606669,0.4614,4316.4,4315.4,6.242]
[1755870606888,0.4614,4316.4,4314.5,3.17164685]
[1755870606889,0.4614,4316.4,4314.6,1.783]
[1755870607038,0.12962438,4316.3,4314.7,4.458]
[1755870607479,0.4614,4316.4,4314.7,4.458]
[1755870607633,0.4614,4316.4,4315.3,2.31729396]
[1755870607969,3.0,4316.3,4315.4,4.458]
[1755870608185,0.49755655,4316.2,4315.4,4.458]
[1755870608385,0.0192,4316.8,4315.5,0.02317228]
[1755870608588,0.0192,4316.8,4314.8,0.02]
[1755870608589,0.66,4316.5,4314.8,0.02]
[1755870608787,15.82630415,4316.0,4314.8,0.02]
[1755870609084,2.31755081,4314.9,4314.8,0.02]
[1755870609284,5.94478067,4314.9,4314.8,0.02]
[1755870609475,2.97771195,4314.6,4314.5,3.001]
[1755870609675,4.03364181,4314.6,4314.5,3.001]
[1755870609873,34.03364181,4314.6,4314.5,3.001]
[1755870610277,4.41879244,4314.6,4314.5,3.001]
[1755870610764,0.36286258,4314.6,4314.5,3.001]
[1755870611914,0.36286258,4314.6,4314.5,5.31876567]
[1755870612267,0.36286258,4314.6,4314.5,5.79336567]
[1755870612467,0.36286258,4314.6,4314.5,7.05028789]
[1755870612692,0.002,4316.3,4314.5,7.0502777]
[1755870612860,0.36271337,4315.2,4314.7,5.31765823]
[1755870613189,0.002,4316.3,4316.2,2.31685278]
[1755870613399,0.002,4316.3,4316.2,9.04239984]
[1755870613558,1e-08,4316.3,4316.2,9.49383132]
[1755870613758,0.0212,4316.8,4316.7,2.31658442]
[1755870613960,0.0212,4316.8,4316.7,6.79575026]
[1755870614159,0.0212,4316.8,4316.7,7.24718442]
[1755870614363,0.0212,4316.8,4316.7,8.20356936]
[1755870614962,0.0212,4316.8,4316.7,3.74756936]
[1755870615165,0.0212,4316.8,4316.7,7.72696936]
[1755870615472,0.0212,4316.8,4316.7,2.31658442]
[1755870615678,0.0204,4316.8,4316.7,6.77058442]
[1755870616417,0.0204,4316.8,4316.7,2.31658442]
[1755870616719,0.0204,4316.8,4316.7,7.26835026]
[1755870616875,0.0204,4316.8,4316.7,7.24518442]
[1755870617074,0.0204,4316.8,4316.7,8.20136936]
[1755870617384,0.002,4317.7,4317.5,2.31615518]
[1755870617996,0.002,4317.7,4317.4,4.452]
[1755870618200,0.002,4317.7,4317.5,2.31615518]
[1755870618376,0.002,4317.7,4317.4,4.452]
[1755870618377,0.002,4317.7,4317.4,6.7682066]
[1755870618577,0.002,4317.7,4317.5,2.31615518]
[1755870619209,0.002,4317.7,4317.5,3.69919655]
[1755870619467,0.002,4317.7,4317.5,3.7223581]
[1755870619729,0.002,4317.7,4317.5,3.69919655]
[1755870620094,0.002,4317.7,4317.5,8.15019655]
[1755870620576,0.02,4318.8,4318.0,2.31586741]
[1755870620777,0.02,4318.8,4318.7,2.31551161]
[1755870621006,0.02,4318.8,4318.7,6.76451161]
[1755870621315,0.02,4318.8,4318.7,4.449]
[1755870621606,0.02,4318.8,4318.7,6.76451161]
[1755870621776,0.02,4319.8,4318.8,3.0]
[1755870621980,0.02,4319.8,4319.7,2.31497557]
[1755870622183,0.02,4319.8,4319.7,8.54597557]
[1755870622820,0.02,4319.8,4319.4,4.449]
[1755870622821,0.4487,4319.8,4319.4,4.449]
[1755870623119,0.02,4319.8,4319.5,2.33822421]
[1755870623316,0.02,4319.8,4318.8,1.782]
[1755870623480,0.02,4319.8,4319.7,2.31497557]
[1755870623680,0.02,4319.8,4319.7,6.76197557]
[1755870623983,0.02,4319.8,4319.7,7.23657557]
[1755870625215,0.02,4321.8,4320.7,2.31443978]
[1755870625419,0.02,4321.8,4320.7,8.54243978]
[1755870625622,0.38222255,4321.8,4320.7,8.54243978]
[1755870625927,0.38222255,4321.8,4320.7,1.782]
[1755870626211,0.02,4321.8,4320.7,8.54243978]
[1755870626879,0.02,4321.8,4320.7,5.70419779]
[1755870627096,0.02,4321.8,4320.7,9.01503978]
[1755870627415,0.4287,4321.2,4320.7,6.226]
[1755870627590,0.4287,4321.5,4320.7,8.54043978]
[1755870627937,0.0192,4320.8,4320.7,9.01503978]
[1755870628424,0.0192,4320.8,4320.7,9.01403978]
[1755870628624,0.0192,4320.8,4320.7,10.14689696]
[1755870628836,0.0192,4320.8,4320.7,5.70389696]
[1755870628997,0.0192,4320.8,4320.7,10.14689696]
[1755870629193,0.0192,4320.8,4320.7,8.53843978]
[1755870629624,0.0192,4320.8,4320.7,1.782]
[1755870629791,0.0192,4320.8,4320.7,4.442]
[1755870629991,0.0192,4320.8,4320.7,7.23103978]
[1755870630303,0.02,4321.8,4321.7,2.31390425]
[1755870630505,0.02,4321.8,4321.7,8.76729468]
[1755870630828,0.02,4321.8,4321.7,9.24189468]
[1755870631025,0.02,4322.8,4322.7,2.31336895]
[1755870631211,0.02,4322.8,4322.7,8.53536895]
[1755870631413,0.02,4322.8,4322.7,6.222]
[1755870632020,0.02,4322.8,4322.7,6.221]
[1755870632220,0.02,4322.8,4322.7,8.53436895]
[1755870632397,0.02,4322.8,4322.7,1.781]
[1755870632603,0.4487,4322.8,4322.7,6.22]
[1755870632827,0.02,4322.8,4322.7,6.22]
[1755870634107,0.4487,4322.8,4322.7,6.219]
[1755870634609,0.02,4322.8,4322.7,8.53236895]
[1755870634835,0.02,4322.8,4322.7,9.61695039]
[1755870635443,0.02,4322.8,4322.7,10.09155039]
[1755870635624,0.02,4322.8,4322.7,10.08955039]
[1755870636454,0.02,4322.8,4322.7,5.65355039]
[1755870636752,0.02,4322.8,4322.7,4.09436895]
[1755870636914,0.02,4322.8,4322.7,8.53036895]
[1755870637111,0.02,4322.8,4322.7,1.781]
[1755870637347,0.02,4322.8,4322.7,6.217]
[1755870637666,0.02,4322.8,4321.1,21.50730415]
[1755870637667,0.4487,4322.8,4321.9,1.78]
[1755870637972,0.4487,4322.8,4320.0,0.4746]
[1755870638273,0.4487,4322.8,4319.3,5.563]
[1755870638274,2.31388667,4321.8,4320.4,2.31454911]
[1755870638408,0.4595,4321.8,4320.8,2.31433999]
[1755870638615,2.44,4322.7,4320.1,1.78]
[1755870638616,0.4595,4322.3,4320.9,4.45714332]
[1755870638857,0.4595,4322.3,4321.0,0.44571433]
[1755870639039,0.02,4322.8,4322.7,2.31336895]
[1755870639252,0.02,4322.8,4322.7,4.434]
[1755870639552,0.02,4322.8,4322.3,4.433]
[1755870639553,0.4795,4322.8,4322.3,4.433]
[1755870639725,0.4595,4322.7,4321.7,1.78]
[1755870639926,0.4595,4322.7,4321.8,4.433]
[1755870640113,0.4587,4322.7,4321.8,4.433]
[1755870640317,0.3621537,4322.5,4321.8,4.433]
[1755870640529,2.31391614,4321.7,4320.8,0.02]
[1755870640765,30.0,4322.4,4320.8,0.02]
[1755870640766,3.0,4322.2,4320.8,0.02]
[1755870640926,0.8300966,4321.9,4320.8,0.02]
[1755870641126,0.49172436,4321.9,4320.8,0.02]
[1755870641420,0.49172436,4322.0,4320.8,0.02]
[1755870641620,0.36224122,4321.7,4320.8,0.04314386]
[1755870642085,0.36224122,4321.7,4320.8,0.02]
[1755870642349,2.31403381,4321.5,4320.8,0.02]
[1755870642548,0.4595,4321.6,4320.9,0.02314332]
[1755870642549,0.49358883,4321.4,4320.9,0.02314332]
[1755870642751,0.36224122,4321.7,4321.3,2.31407723]
[1755870643051,0.4595,4321.6,4320.8,0.02]
[1755870643454,2.77346073,4321.6,4320.8,0.02]
[1755870643654,0.49358883,4321.5,4320.8,0.02]
[1755870643822,2.3140437,4321.5,4320.8,0.02]
[1755870644018,2.31411843,4321.3,4320.8,0.02]
[1755870644257,2.31422554,4321.1,4320.8,0.02]
[1755870644555,2.31433266,4320.9,4320.8,0.02]
[1755870644753,36.46792149,4320.9,4320.8,0.02]
[1755870644922,36.92742149,4320.9,4320.8,0.02]
[1755870645117,36.92742149,4320.9,4320.8,0.021]
[1755870645334,3.66,4320.8,4319.1,1.78]
[1755870645537,0.8244171,4320.4,4319.2,0.02315243]
[1755870645769,0.49358883,4320.6,4320.0,2.31481357]
[1755870645978,0.4595,4320.8,4319.2,0.02315243]
[1755870646284,1.31800593,4321.3,4319.9,2.33801707]
[1755870646447,0.4595,4321.5,4319.9,2.33801707]
[1755870646448,0.95308883,4321.5,4320.0,0.67890171]
[1755870646635,0.002,4321.8,4320.1,1.80314761]
[1755870646939,0.002,4321.8,4321.4,2.31402868]
[1755870647484,0.002,4321.8,4321.3,0.02314118]
[1755870647836,0.002,4321.8,4321.2,4.43]
[1755870648070,0.002,4321.8,4320.0,0.4313]
[1755870648237,0.002,4321.8,4320.2,0.22113]
[1755870648445,0.002,4321.8,4321.4,2.31403179]
[1755870648650,0.002,4321.8,4321.7,2.31390425]
[1755870648883,0.002,4321.8,4321.2,0.02314171]
[1755870649036,0.002,4321.8,4321.7,2.31390425]
[1755870649485,0.002,4321.8,4321.7,2.33704329]
[1755870649836,0.022,4321.8,4321.7,2.31390425]
[1755870650165,0.022,4321.8,4321.7,6.76604329]
[1755870650334,0.022,4321.8,4321.7,2.31390425]
[1755870650531,0.022,4321.8,4321.7,2.79983318]
[1755870650743,0.022,4321.8,4321.7,7.63699414]
[1755870650948,0.022,4321.8,4321.7,7.20569414]
[1755870651176,0.022,4321.8,4321.7,7.63699414]
[1755870651472,0.022,4321.8,4321.7,3.20799414]
[1755870651771,0.022,4321.8,4321.7,7.66013318]
[1755870651969,0.022,4321.8,4321.7,7.63699414]
[1755870652332,0.0212,4321.8,4321.7,7.63699414]
[1755870652836,1e-08,4321.8,4321.7,7.63699414]
[1755870653241,0.002,4322.3,4322.2,2.31363657]
[1755870653242,1e-08,4322.3,4322.2,2.31363657]
[1755870653462,1e-08,4322.3,4322.2,4.34813659]
[1755870653869,1e-08,4322.3,4322.2,4.77943659]
[1755870654173,1e-08,4322.3,4322.2,9.18330023]
[1755870655163,1e-08,4322.3,4322.2,4.32500023]
[1755870655373,1e-08,4322.3,4322.2,8.54377293]
[1755870655574,1e-08,4322.3,4322.2,8.52063657]
[1755870655774,1e-08,4322.3,4322.2,8.95093657]
[1755870656240,1e-08,4322.3,4322.2,4.52493657]
[1755870656440,1e-08,4322.3,4322.2,8.97307293]
[1755870656641,1e-08,4322.3,4322.2,10.07861511]
[1755870656973,1e-08,4322.3,4322.2,8.51863657]
[1755870657858,1e-08,4322.3,4322.2,4.09363657]
[1755870658042,1e-08,4322.3,4322.2,8.51863657]
[1755870658236,1e-08,4322.3,4322.2,4.09363657]
[1755870658452,1e-08,4322.3,4322.2,4.30334506]
[1755870659086,1e-08,4322.3,4322.2,9.38905082]
[1755870659250,1e-08,4322.3,4322.2,9.82036312]
[1755870659446,1e-08,4322.3,4322.2,9.38906312]
[1755870659774,1e-08,4322.3,4322.2,4.30335736]
[1755870659967,1e-08,4322.3,4322.2,8.72635736]
[1755870660170,1e-08,4322.3,4322.2,1.98972079]
[1755870660558,1e-08,4322.3,4322.2,6.203]
[1755870660764,1e-08,4322.3,4322.2,8.51663657]
[1755870660965,1e-08,4322.3,4322.2,9.80928176]
[1755870661172,1e-08,4322.3,4322.2,10.24058176]
[1755870661368,1e-08,4322.3,4322.2,10.24049488]
[1755870661680,0.003,4323.5,4323.1,2.31315491]
[1755870661849,0.003,4323.5,4323.1,6.96780825]
[1755870662049,0.003,4323.5,4323.1,8.30408046]
[1755870662481,1e-08,4323.5,4323.4,2.3129944]
[1755870662694,1e-08,4323.5,4323.4,7.3025162]
[1755870662860,1e-08,4323.5,4323.4,8.7245162]
[1755870664183,1e-08,4323.5,4323.4,8.9462944]
[1755870664403,1e-08,4323.5,4323.4,1.98887346]
[1755870664621,0.36192832,4324.4,4323.7,2.31283391]
[1755870665083,0.49922423,4324.7,4323.7,2.31283391]
[1755870665287,0.003,4324.7,4323.7,2.31283391]
[1755870665492,0.36196568,4324.0,4323.7,2.33596224]
[1755870665795,0.36196568,4324.0,4323.7,4.419]
[1755870666148,0.36196568,4324.0,4323.4,1.78]
[1755870666347,0.36196568,4324.0,4323.7,4.419]
[1755870667091,30.97572423,4323.8,4322.1,1.779]
[1755870667274,0.82652487,4323.6,4322.2,4.419]
[1755870667468,0.4595,4323.5,4322.3,4.418]
[1755870667785,0.36206045,4323.3,4323.0,2.31320556]
[1755870667989,0.4595,4323.2,4322.5,4.418]
[1755870668189,0.4595,4323.2,4322.6,4.418]
[1755870668392,0.4595,4323.2,4321.8,1.799]
[1755870668579,0.4595,4323.2,4321.9,4.418]
[1755870668778,31.3227491,4323.1,4321.8,1.799]
[1755870668979,0.82652487,4322.3,4321.8,0.02]
[1755870669160,2.31375897,4322.0,4321.8,0.02]
[1755870669496,0.49622423,4321.9,4321.8,0.02]
[1755870669655,0.4724,4321.9,4321.8,0.02]
[1755870670088,0.36220534,4322.2,4321.8,0.02]
[1755870670300,0.36220534,4322.2,4321.9,0.02313797]
[1755870670483,0.36220534,4322.2,4322.0,2.31374363]
[1755870670789,0.36220534,4322.2,4321.9,1.78]
[1755870670990,0.4724,4322.1,4321.9,1.78]
[1755870671189,0.36220534,4322.2,4321.8,4.437]
[1755870671390,0.4724,4322.0,4321.8,4.437]
[1755870671599,0.36220534,4322.2,4321.8,4.437]
[1755870671800,0.36220534,4322.2,4321.9,2.33693514]
[1755870671958,0.36220534,4322.2,4321.8,4.8807]
[1755870672576,0.4724,4322.1,4321.9,4.417]
[1755870672777,0.4724,4322.0,4321.9,4.417]
[1755870672983,0.4724,4322.0,4321.8,0.02]
[1755870673183,0.4724,4321.9,4321.8,0.02]
[1755870674169,0.36220534,4322.2,4321.8,0.02]
[1755870674803,0.4724,4321.9,4321.8,0.02]
[1755870675773,0.36220534,4322.2,4321.8,0.02]
[1755870676201,0.4724,4322.1,4321.8,0.02]
[1755870676579,0.36220534,4322.2,4321.8,0.02]
[1755870676580,0.4724,4322.0,4321.8,0.02]
[1755870676773,0.4716,4322.0,4321.8,0.02]
[1755870676974,0.36220534,4322.2,4321.8,0.02]
[1755870677217,2.31379717,4321.9,4321.8,0.02]
[1755870677596,2.81004215,4321.9,4321.8,0.02]
[1755870677797,0.49624498,4321.9,4321.8,0.02]
[1755870678108,3.0,4322.1,4321.8,0.02]
[1755870678290,0.62568528,4322.0,4321.8,0.02]
[1755870678485,0.36220534,4322.2,4321.8,0.02]
[1755870678721,0.12939968,4322.1,4321.8,0.02]
[1755870678922,2.78619717,4321.9,4321.8,0.02]
[1755870679218,3.28244215,4321.9,4321.8,0.02]
[1755870679608,3.41184975,4321.9,4321.8,0.02]
[1755870679828,7.07184975,4321.9,4321.8,0.02]
[1755870680140,37.89837462,4321.9,4321.8,0.02]
[1755870680304,41.48584975,4321.9,4321.8,0.021]
[1755870680509,37.07184975,4321.9,4321.8,0.021]
[1755870680706,6.41184975,4321.9,4321.8,0.021]
[1755870681133,0.96864498,4321.9,4321.8,0.021]
[1755870681325,2.78619717,4321.9,4321.8,0.021]
[1755870681545,0.96864498,4321.9,4321.8,0.021]
[1755870681852,0.36420534,4322.2,4321.8,0.021]
[1755870682158,2.78619717,4321.9,4321.8,0.021]
[1755870682712,6.28264366,4321.9,4321.8,0.021]
[1755870683222,0.49644649,4321.9,4321.8,0.021]
[1755870683448,2.31369161,4322.1,4321.8,0.021]
[1755870683628,0.36420534,4322.2,4321.8,0.021]
[1755870683825,0.4724,4322.0,4321.8,0.021]
[1755870684028,2.31379717,4321.9,4321.8,0.021]
[1755870684356,3.28252676,4321.9,4321.8,0.021]
[1755870686431,2.81012676,4321.9,4321.8,0.021]
[1755870686618,3.28252676,4321.9,4321.8,0.021]
[1755870687458,6.94252676,4321.9,4321.8,0.021]
[1755870687646,6.94252676,4321.9,4320.9,0.001]
[1755870687647,2.9742791,4321.0,4320.9,0.001]
[1755870687848,41.00985389,4321.0,4320.9,0.001]
[1755870688166,2.97486839,4319.9,4319.3,0.001]
[1755870688336,41.01044318,4319.9,4319.3,0.001]
[1755870688663,2.97513636,4319.4,4319.3,0.001]
[1755870688868,2.97513636,4319.4,4317.8,0.02]
[1755870688869,0.66,4318.5,4317.8,0.02]
[1755870689164,2.31594061,4317.9,4317.8,0.02]
[1755870689332,35.8122702,4317.9,4317.8,0.02]
[1755870689531,36.2846702,4317.9,4317.8,0.02]
[1755870689731,3.96872959,4317.9,4317.8,0.02]
[1755870689930,5.78834061,4317.9,4317.8,0.02]
[1755870690165,1.78,4318.4,4317.8,0.02]
[1755870690364,2.31583486,4318.1,4317.8,0.02]
[1755870690669,4.8824,4318.3,4317.8,0.02]
[1755870690830,4.409,4318.3,4317.8,0.02]
[1755870691030,1.78,4318.4,4317.8,0.02]
[1755870691230,8.50469115,4318.4,4317.8,0.02]
[1755870691455,1.29953945,4319.8,4317.8,0.02]
[1755870691729,4.409,4319.7,4317.9,0.4798594]
[1755870691929,0.36243505,4319.4,4317.9,2.2377]
[1755870692158,0.36243505,4319.4,4318.2,2.31577972]
[1755870692377,0.36243505,4319.4,4318.3,0.4567]
[1755870692564,0.36243505,4319.4,4317.9,1.781]
[1755870692773,2.31541219,4318.9,4317.9,1.781]
[1755870692945,2.31524356,4319.2,4317.9,1.781]
[1755870692946,2.31551403,4318.7,4317.9,1.781]
[1755870693153,4.409,4318.6,4317.8,0.02]
[1755870693351,2.31573362,4318.3,4317.8,0.02]
[1755870693586,4.77149559,4318.6,4317.8,0.02]
[1755870693751,0.4724,4318.2,4317.8,0.02]
[1755870694084,2.31583335,4318.1,4317.8,0.02]
[1755870694283,4.409,4318.0,4317.8,0.02]
[1755870694469,2.31594061,4317.9,4317.8,0.02]
[1755870694650,36.94286823,4317.9,4317.8,0.02]
[1755870694846,0.66,4317.6,4316.8,0.02]
[1755870695050,21.80278125,4316.9,4316.8,0.02]
[1755870695281,58.48730887,4316.9,4316.8,0.02]
[1755870695483,6.40792762,4316.9,4316.8,0.02]
[1755870695685,9.68452762,4316.9,4316.8,0.02]
[1755870695890,13.13340472,4316.9,4316.8,0.02]
[1755870696052,13.49608141,4316.9,4316.8,0.02]
[1755870696252,43.49608141,4316.9,4316.8,0.02]
[1755870696448,36.77060431,4316.9,4316.8,0.02]
[1755870696784,43.49608141,4316.9,4316.8,0.02]
[1755870697267,39.08708141,4316.9,4316.8,0.02]
[1755870697472,43.49508141,4316.9,4316.8,0.02]
[1755870698086,39.08708141,4316.9,4316.8,0.02]
[1755870698388,10.04720431,4316.9,4316.8,0.02]
[1755870698775,7.46015379,4316.9,4316.8,0.02]
[1755870699082,0.36267669,4316.9,4316.8,0.021]
[1755870699956,0.36267669,4316.9,4315.8,2.33802038]
[1755870699957,0.021,4316.7,4314.3,0.001]
[1755870700269,0.82441161,4315.9,4314.5,0.4746]
[1755870700451,1.782,4316.6,4314.5,0.4746]
[1755870700651,1.782,4316.6,4314.6,0.02317711]
[1755870700652,0.36275237,4315.7,4314.6,0.02317711]
[1755870700973,0.36275237,4315.7,4314.5,0.4746]
[1755870700974,3.0,4315.6,4314.5,0.4746]
[1755870701176,4.87095237,4315.7,4314.5,0.4746]
[1755870701486,2.31755081,4314.9,4314.5,0.001]
[1755870702058,2.68038162,4314.9,4314.5,0.001]
[1755870702477,0.36283081,4314.9,4314.8,0.4936]
[1755870702663,0.36283081,4314.9,4314.8,3.4936]
[1755870702875,0.36283081,4314.9,4314.8,3.02]
[1755870703461,2.68038162,4314.9,4314.8,3.02]
[1755870704254,0.36283081,4314.9,4314.8,3.02]
[1755870704453,0.36283081,4314.9,4314.8,3.4936]
[1755870704696,2.68038162,4314.9,4314.8,3.02]
[1755870705191,0.36283081,4314.9,4314.8,3.02]
[1755870705776,0.36283081,4314.9,4314.8,3.4936]
[1755870706002,0.36283081,4314.9,4314.8,6.16066452]
[1755870707193,1.782,4316.6,4315.6,2.31715284]
[1755870707395,2.80903458,4317.0,4315.7,0.02317121]
[1755870707597,2.31660366,4316.7,4315.6,2.31716115]
[1755870707903,3.0,4317.1,4315.7,0.02317121]
[1755870708096,2.31673058,4316.5,4315.7,0.02317121]
[1755870708297,2.31653076,4316.8,4314.8,3.84306]
[1755870708483,0.4525,4317.0,4314.8,3.84306]
[1755870708484,0.66,4316.6,4314.8,3.84306]
[1755870708794,4.97677923,4316.8,4314.9,0.4967755]
[1755870708994,2.31675797,4316.4,4315.2,2.31738159]
[1755870709205,3.0,4316.6,4315.2,0.36177118]
[1755870709379,0.493045,4316.5,4315.3,0.4736]
[1755870709577,0.3626816,4317.1,4315.3,0.4736]
[1755870709578,0.493045,4316.8,4315.3,0.49677335]
[1755870709921,0.493045,4317.1,4315.3,0.49677335]
[1755870710110,0.493045,4317.5,4315.4,2.31728229]
[1755870710398,0.493045,4317.5,4316.8,2.31648634]
[1755870710597,0.85580043,4317.8,4316.9,2.31646927]
[1755870710799,2.31607159,4317.7,4316.6,0.4736]
[1755870711010,0.49316443,4317.6,4316.7,0.02316584]
[1755870711202,0.362636,4317.8,4316.7,0.02316584]
[1755870711404,0.362636,4317.8,4317.1,2.31633062]
[1755870711568,0.362636,4317.8,4316.6,0.4736]
[1755870711769,0.362636,4317.8,4317.0,2.3163779]
[1755870711965,0.362636,4317.8,4317.1,2.31635986]
[1755870712202,0.362636,4317.8,4317.7,2.31604789]
[1755870712400,0.02,4318.8,4318.7,2.31551161]
[1755870712802,0.02,4318.8,4318.7,2.78911161]
[1755870713022,0.02,4318.8,4318.7,2.81226672]
[1755870713408,0.02,4318.8,4318.7,2.78911161]
[1755870713567,0.0192,4318.8,4318.7,3.47778171]
[1755870714182,0.0192,4318.8,4318.7,2.78911161]
[1755870715592,0.0192,4318.8,4318.7,2.81226672]
[1755870715793,0.0192,4318.8,4318.5,1.782]
[1755870717077,0.0192,4318.8,4317.8,6.76397456]
[1755870717298,0.51286838,4318.8,4317.8,6.76397456]
[1755870717501,0.51286838,4318.8,4317.8,2.31597456]
[1755870717699,0.51286838,4318.8,4317.6,6.228]
[1755870717900,0.0192,4318.8,4317.6,6.228]
[1755870718100,2.3346688,4318.8,4317.7,2.31604789]
[1755870718321,0.49366838,4318.7,4317.8,2.31595664]
[1755870718526,0.51286838,4318.8,4317.6,6.228]
[1755870718846,0.4525,4318.7,4317.6,1.782]
[1755870718997,2.31572015,4318.4,4317.6,1.782]
[1755870719305,0.49366838,4318.3,4317.6,1.782]
[1755870719502,0.0192,4318.8,4317.7,0.49676047]
[1755870719707,0.38166319,4318.8,4317.7,0.49676047]
[1755870720528,0.0192,4318.8,4318.7,2.31551161]
[1755870720729,1e-08,4319.4,4318.8,3.0]
[1755870720935,1.33982414,4320.8,4318.8,3.0]
[1755870720936,0.38238042,4320.8,4320.7,2.31443978]
[1755870721119,0.82441161,4322.4,4320.7,6.6926]
[1755870721120,0.4949636,4322.4,4320.7,6.6926]
[1755870721429,0.002,4322.7,4320.7,6.6926]
[1755870721430,0.3642603,4322.2,4320.8,4.46014386]
[1755870721632,0.3642603,4322.2,4320.8,4.93374386]
[1755870721834,0.3642603,4322.2,4320.8,0.4736]
[1755870721999,0.3642603,4322.2,4320.9,4.436]
[1755870722196,0.3642603,4322.2,4320.8,0.4736]
[1755870722609,0.4525,4322.1,4320.3,4.43]
[1755870722955,0.36228448,4321.7,4320.7,2.31438913]
[1755870723135,0.36228448,4321.7,4319.9,1.781]
[1755870723442,0.66,4321.5,4319.9,1.781]
[1755870723642,0.4525,4321.6,4320.6,2.31447063]
[1755870723804,0.66,4321.5,4320.1,2.31474314]
[1755870724007,0.4525,4321.6,4320.3,2.31461723]
[1755870724244,0.36226016,4321.2,4319.9,1.781]
[1755870724444,0.36226016,4321.2,4320.4,2.31459865]
[1755870724615,0.36226016,4321.2,4319.9,1.781]
[1755870724805,0.36226016,4321.2,4320.0,4.44814814]
[1755870725231,0.36226016,4321.2,4320.0,4.425]
[1755870725641,2.67567442,4321.2,4320.0,4.425]
[1755870725846,2.67567442,4321.2,4320.3,2.31460313]
[1755870725847,0.36146016,4321.2,4320.3,2.31460313]
[1755870726144,0.36146016,4321.2,4320.8,2.31436721]
[1755870726437,3.02,4321.8,4320.3,0.4736]
[1755870726438,2.33385903,4321.8,4320.3,0.4736]
[1755870726625,0.02,4321.8,4319.9,1.781]
[1755870726946,0.02,4321.8,4320.0,0.02314814]
[1755870726947,0.4525,4321.7,4320.0,0.02314814]
[1755870727238,0.02,4321.8,4320.8,2.31433698]
[1755870727440,0.02,4321.8,4321.3,2.31407479]
[1755870727638,0.02,4321.8,4320.8,4.416]
[1755870727941,0.02,4321.8,4321.1,2.31418255]
[1755870728143,0.02,4321.8,4321.4,2.3140262]
[1755870728445,2.33385647,4321.8,4320.8,4.416]
[1755870728630,0.02,4321.8,4320.9,2.31433266]
[1755870728830,0.02,4321.8,4319.9,4.09583101]
[1755870728831,0.02,4321.8,4320.1,0.455]
[1755870729044,0.02,4321.8,4320.9,2.31432633]
[1755870729248,0.4487,4321.8,4320.2,4.411]
[1755870729555,2.31434949,4320.9,4320.2,4.411]
[1755870729714,0.36222985,4321.6,4320.2,4.411]
[1755870729914,2.31402935,4321.5,4320.4,2.31460049]
[1755870730209,0.36222985,4321.6,4320.5,0.02314546]
[1755870730432,0.36222985,4321.6,4321.0,2.31426032]
[1755870730633,0.36222985,4321.6,4321.2,2.31417198]
[1755870730825,0.36222985,4321.6,4321.1,0.02314225]
[1755870731009,0.36222985,4321.6,4320.8,2.31438622]
[1755870731221,0.36222985,4321.6,4320.9,0.02314332]
[1755870731537,2.67619226,4321.6,4320.6,2.76948334]
[1755870732273,0.36222985,4321.6,4320.2,0.001]
[1755870732476,2.31421855,4321.2,4320.2,2.31570445]
[1755870732626,0.4287,4321.2,4320.2,0.001]
[1755870733273,0.36228541,4321.0,4320.2,0.001]
[1755870733439,0.36228541,4321.0,4320.3,2.76965407]
[1755870733763,0.36228541,4321.0,4320.2,4.411]
[1755870734138,2.31438324,4320.9,4320.2,0.001]
[1755870734339,0.36228541,4321.0,4320.2,0.001]
[1755870734560,0.36228541,4321.0,4320.2,2.31567643]
[1755870734739,0.36228541,4321.0,4320.2,0.001]
[1755870734942,2.67660314,4321.0,4320.2,0.001]
[1755870735272,0.79098541,4321.0,4320.2,0.001]
[1755870735563,2.31465407,4320.3,4320.2,0.001]
[1755870735763,2.97465407,4320.3,4320.2,0.001]
[1755870735967,5.31465407,4320.3,4320.2,0.001]
[1755870736133,2.74335407,4320.3,4320.2,0.001]
[1755870736470,3.23786664,4320.3,4320.2,0.001]
[1755870736666,6.89786664,4320.3,4320.2,0.001]
[1755870738051,6.89706664,4320.3,4320.2,0.001]
[1755870738257,36.89706664,4320.3,4320.2,1e-08]
[1755870738477,3.66,4320.2,4319.8,1e-08]
[1755870738790,3.66,4320.2,4316.7,0.455]
[1755870738791,2.31558777,4318.6,4316.7,0.455]
[1755870738936,2.97594061,4317.9,4316.2,1.781]
[1755870739269,36.47045318,4317.9,4316.2,1.781]
[1755870739428,37.4257657,4317.9,4316.2,1.781]
[1755870739632,42.26518503,4317.9,4316.2,1.781]
[1755870739826,42.25090545,4317.9,4316.2,1.781]
[1755870740072,42.38017225,4317.9,4316.2,1.781]
[1755870740373,41.9158694,4317.9,4317.8,1e-08]
[1755870741036,41.9168694,4317.9,4317.8,1e-08]
[1755870741261,2.9764771,4316.9,4315.8,0.02]
[1755870741459,40.88198967,4316.9,4315.8,0.02]
[1755870741657,7.90551257,4316.9,4315.8,2.33706192]
[1755870741857,6.17365848,4316.9,4315.8,0.02]
[1755870742057,10.58465848,4316.9,4315.8,0.02]